{"text_format":"1","workbook":"xlsx","n_sheets":3,"sheets":["Invoice","Sales","Setting"],"not_rendered":{"charts":0,"images":1,"macros":1,"external_links":0,"defined_names":2,"comments":0,"pivot_tables":0},"unopened":[],"bounds":{"document_bytes":16777216,"sheet_cells":100000,"rows_first":2000,"rows_last":500,"rows_between":2000,"halvings":0,"cell_chars":16384,"cell_head_chars":4096},"cells_cut":0,"cells_raw":0,"read":"whole","date_system":"1900"}

{"sheet":"Invoice","index":0,"n_rows":38,"n_cols":6,"rows_kept":38,"cut":false,"hidden":false,"merged":[[33,1,37,1]]}
[null,"التاريخ",{"$f":"NOW()","v":"2019-08-23T02:25:08.390"},null,null,"قيمة الخصم"]
[null,null,null,null,null,0.05]
[null,"رقم الفاتورة",9]
[]
[null,"الكابتن اوردر"]
[]
[null,"رقم الترابيزة"]
[]
[null,"اسم الويتر"]
[]
["النوع","الصنف","الكمية","السعر","الاجمالى"]
[null,null,null,null,{"$f":"C12*D12","v":0}]
[null,null,null,null,{"$f":"C13*D13","v":0}]
[null,null,null,null,0]
[null,null,null,null,0]
[null,null,null,null,0]
[null,null,null,null,0]
[null,null,null,null,0]
[null,null,null,null,0]
[]
[]
[null,null,null,null,0]
[null,null,null,null,0]
[]
[null,null,null,null,0]
[null,null,null,null,0]
[null,null,null,null,0]
[null,null,null,null,0]
[null,null,null,null,0]
[null,null,null,null,0]
[null,null,null,null,0]
[null,null,null,null,0]
[null,null,null,null,0]
[]
[null,null,null,"الاجمالى",{"$f":"SUM(E12:E33)","v":0}]
[null,null,null,"الخصم",{"$f":"IF($E$35=0,\"\",$E$35*$F$2)","v":""}]
[null,null,null,"12% خدمة",{"$f":"$E$35*12%","v":0}]
[null,null,null,"الصافي",{"$f":"IFERROR((E35+E37)-E36,\"\")","v":""}]

{"sheet":"Sales","index":1,"n_rows":18,"n_cols":13,"rows_kept":18,"cut":false,"hidden":false,"merged":[]}
["التاريخ","رقم الفاتورة","الكابتن اوردر","رقم الترابيزة","اسم الويتر","النوع","الصنف","الكمية","السعر","الاجمالى","الخصم","12% خدمة","الصافي"]
["2019-08-21T14:48:07.770",1,136520,30,"محمد سعيد","المشروبات","شاى",2,10,80,8,9.6,81.599999999999994]
["2019-08-21T15:01:28.210",2,52632,70,"أحمد شوقى","المشروبات","شاى فتلة",10,18,273,27.3,32.76,278.45999999999998]
["2019-08-21T15:01:32.300",2,52632,70,"أحمد شوقى","المشروبات","حلبة حصى",2,15]
["2019-08-21T15:01:32.310",2,52632,70,"أحمد شوقى","الساندوتشات","كبدة",3,21]
["2019-08-21T20:46:54.190",3,"H25632",5,"أشرف عبد الفتاح","الساندوتشات","كبدة",2,15,105,5.25,12.6,112.35]
["2019-08-22T20:47:20.530",4,1212,36,"أحمد مرسى","المشروبات","حاجة ساقعة",10,2]
["2019-08-22T20:47:26.830",4,1212,36,"أحمد مرسى","المشروبات","شاى فتلة",10,3]
["2019-08-22T20:47:26.830",4,1212,36,"أحمد مرسى","الساندوتشات","كبدة",1,120,170,8.5,20.399999999999999,181.9]
["2019-08-22T20:49:26.580",5,200,37,"فرج المصرى","المشروبات","حاجة ساقعة",2,100,200,10,24,214]
["2019-08-23T02:18:26.580",6,"fffffff",38,"أشرف عبد الفتاح","المشروبات","قهوة",10,20]
["2019-08-23T02:18:31.030",6,"fffffff",38,"أشرف عبد الفتاح","المشروبات","شاى فتلة",5,30]
["2019-08-23T02:18:31.030",6,"fffffff",38,"أشرف عبد الفتاح","الوجبات","طاجن بامية بالضانى",1,45,395,19.75,47.4,422.65]
["2019-08-23T02:19:35.650",7,"dddd",39,"فرج المصرى","الوجبات","طاجن بامية بالضانى",2,45]
["2019-08-23T02:19:39.920",7,"dddd",39,"فرج المصرى","الساندوتشات","كبدة",5,15]
["2019-08-23T02:19:39.920",7,"dddd",39,"فرج المصرى","المشروبات","شاى فتلة",10,20]
["2019-08-23T02:19:39.920",7,"dddd",39,"فرج المصرى","المشروبات","حاجة ساقعة",2,20,405,20.25,48.6,433.35]
["2019-08-23T02:25:07.100",8,1111,35,"فرج المصرى","الساندوتشات","كبدة",10,20,200,10,24,214]

{"sheet":"Setting","index":2,"n_rows":67,"n_cols":13,"rows_kept":67,"cut":false,"hidden":true,"merged":[]}
["النوع","المشروبات","الساندوتشات","الوجبات",null,null,null,null,null,null,null,"أرقام الترابيزات","أسماء الويتر"]
["المشروبات","حاجة ساقعة","كبدة","طاجن بامية بالضانى",null,null,null,null,null,null,null,1,"محمد سعيد"]
["الساندوتشات","شاى",null,null,null,null,null,null,null,null,null,2,"أحمد مرسى"]
["الوجبات","شاى فتلة",null,null,null,null,null,null,null,null,null,3,"فرج المصرى"]
[null,"قهوة",null,null,null,null,null,null,null,null,null,4,"أشرف عبد الفتاح"]
[null,"نسكافيه",null,null,null,null,null,null,null,null,null,5,"وليد رمضان"]
[null,"ينسون",null,null,null,null,null,null,null,null,null,6,"وائل فراج"]
[null,"حلبة",null,null,null,null,null,null,null,null,null,7,"رضا شرف"]
[null,"شاى بحليب",null,null,null,null,null,null,null,null,null,8]
[null,null,null,null,null,null,null,null,null,null,null,9]
[null,null,null,null,null,null,null,null,null,null,null,10]
[null,null,null,null,null,null,null,null,null,null,null,11]
[null,null,null,null,null,null,null,null,null,null,null,12]
[null,null,null,null,null,null,null,null,null,null,null,13]
[null,null,null,null,null,null,null,null,null,null,null,14]
[null,null,null,null,null,null,null,null,null,null,null,15]
[null,null,null,null,null,null,null,null,null,null,null,16]
[null,null,null,null,null,null,null,null,null,null,null,17]
[null,null,null,null,null,null,null,null,null,null,null,18]
[null,null,null,null,null,null,null,null,null,null,null,19]
[null,null,null,null,null,null,null,null,null,null,null,20]
[null,null,null,null,null,null,null,null,null,null,null,21]
[null,null,null,null,null,null,null,null,null,null,null,22]
[null,null,null,null,null,null,null,null,null,null,null,23]
[null,null,null,null,null,null,null,null,null,null,null,24]
[null,null,null,null,null,null,null,null,null,null,null,25]
[null,null,null,null,null,null,null,null,null,null,null,26]
[null,null,null,null,null,null,null,null,null,null,null,27]
[null,null,null,null,null,null,null,null,null,null,null,28]
[null,null,null,null,null,null,null,null,null,null,null,29]
[null,null,null,null,null,null,null,null,null,null,null,30]
[null,null,null,null,null,null,null,null,null,null,null,31]
[null,null,null,null,null,null,null,null,null,null,null,32]
[null,null,null,null,null,null,null,null,null,null,null,33]
[]
[null,null,null,null,null,null,null,null,null,null,null,35]
[null,null,null,null,null,null,null,null,null,null,null,36]
[null,null,null,null,null,null,null,null,null,null,null,37]
[null,null,null,null,null,null,null,null,null,null,null,38]
[null,null,null,null,null,null,null,null,null,null,null,39]
[null,null,null,null,null,null,null,null,null,null,null,40]
[null,null,null,null,null,null,null,null,null,null,null,41]
[null,null,null,null,null,null,null,null,null,null,null,42]
[null,null,null,null,null,null,null,null,null,null,null,43]
[null,null,null,null,null,null,null,null,null,null,null,44]
[null,null,null,null,null,null,null,null,null,null,null,45]
[null,null,null,null,null,null,null,null,null,null,null,46]
[null,null,null,null,null,null,null,null,null,null,null,47]
[null,null,null,null,null,null,null,null,null,null,null,48]
[null,null,null,null,null,null,null,null,null,null,null,49]
[null,null,null,null,null,null,null,null,null,null,null,50]
[null,null,null,null,null,null,null,null,null,null,null,51]
[null,null,null,null,null,null,null,null,null,null,null,52]
[null,null,null,null,null,null,null,null,null,null,null,53]
[null,null,null,null,null,null,null,null,null,null,null,54]
[null,null,null,null,null,null,null,null,null,null,null,55]
[null,null,null,null,null,null,null,null,null,null,null,56]
[null,null,null,null,null,null,null,null,null,null,null,57]
[null,null,null,null,null,null,null,null,null,null,null,58]
[null,null,null,null,null,null,null,null,null,null,null,59]
[null,null,null,null,null,null,null,null,null,null,null,60]
[null,null,null,null,null,null,null,null,null,null,null,61]
[null,null,null,null,null,null,null,null,null,null,null,62]
[null,null,null,null,null,null,null,null,null,null,null,63]
[null,null,null,null,null,null,null,null,null,null,null,64]
[null,null,null,null,null,null,null,null,null,null,null,65]
[null,null,null,null,null,null,null,null,null,null,null,66]